[Event "Titled Tuesday Blitz February 21 Early 2023"]
[White "Bas Mas, Jose Joaquin"]
[Black "Gardezi, Arsal"]
[WhiteFideId "22219064"]
[BlackFideId "30949521"]
[WhiteElo "2197"]
[BlackElo "2093"]
[Result "1-0"]
[Round "07"]
[TimeControl "180+2"]
[Date "2023.02.21"]
[WhiteClock "0:00:30"]
[BlackClock "0:00:29"]

1. e4 {[%clk 0:03:00]}  e5 {[%clk 0:02:58]} 2. Bc4 {[%clk 0:02:59]}  Nf6 {[%clk 0:02:55]} 3. d3 {[%clk 0:03:00]}  Nc6 {[%clk 0:02:50]} 4. Nc3 {[%clk 0:02:59]}  Bc5 {[%clk 0:02:49]} 5. f4 {[%clk 0:02:59]}  d6 {[%clk 0:02:48]} 6. Nf3 {[%clk 0:02:58]}  Bg4 {[%clk 0:02:47]} 7. h3 {[%clk 0:02:59]}  Bxf3 {[%clk 0:02:47]} 8. Qxf3 {[%clk 0:03:00]}  Nd4 {[%clk 0:02:47]} 9. Qg3 {[%clk 0:03:00]}  Qe7 {[%clk 0:02:40]} 10. fxe5 {[%clk 0:02:49]}  dxe5 {[%clk 0:02:40]} 11. Kd1 {[%clk 0:02:47]}  O-O-O {[%clk 0:02:39]} 12. Rf1 {[%clk 0:02:35]}  b5 {[%clk 0:02:38]} 13. Nxb5 {[%clk 0:02:25]}  Nxe4 {[%clk 0:02:33]} 14. Qg4+ {[%clk 0:02:18]}  f5 {[%clk 0:02:28]} 15. Rxf5 {[%clk 0:02:17]}  Qd7 {[%clk 0:02:04]} 16. Qxe4 {[%clk 0:02:12]}  Qxf5 {[%clk 0:01:53]} 17. Qxf5+ {[%clk 0:01:44]}  Nxf5 {[%clk 0:01:52]} 18. Be6+ {[%clk 0:01:45]}  Kb8 {[%clk 0:01:48]} 19. Bxf5 {[%clk 0:01:45]}  Rhf8 {[%clk 0:01:48]} 20. Be4 {[%clk 0:01:43]}  Rf1+ {[%clk 0:01:47]} 21. Kd2 {[%clk 0:01:43]}  Rdf8 {[%clk 0:01:44]} 22. a3 {[%clk 0:01:38]}  R8f2+ {[%clk 0:01:42]} 23. Kc3 {[%clk 0:01:37]}  a6 {[%clk 0:01:40]} 24. b4 {[%clk 0:01:29]}  Bb6 {[%clk 0:01:37]} 25. Bb2 {[%clk 0:01:11]}  Rxa1 {[%clk 0:01:32]} 26. Bxa1 {[%clk 0:01:12]}  axb5 {[%clk 0:01:32]} 27. Kb3 {[%clk 0:01:11]}  Bd4 {[%clk 0:01:31]} 28. Bxd4 {[%clk 0:01:10]}  exd4 {[%clk 0:01:32]} 29. a4 {[%clk 0:01:11]}  bxa4+ {[%clk 0:01:31]} 30. Kxa4 {[%clk 0:01:11]}  Rxc2 {[%clk 0:01:31]} 31. Kb5 {[%clk 0:01:12]}  h5 {[%clk 0:01:26]} 32. Ka5 {[%clk 0:01:11]}  h4 {[%clk 0:01:26]} 33. Kb5 {[%clk 0:01:11]}  g5 {[%clk 0:01:26]} 34. Ka5 {[%clk 0:01:12]}  Re2 {[%clk 0:01:26]} 35. Ka4 {[%clk 0:01:07]}  Ka7 {[%clk 0:01:19]} 36. Kb3 {[%clk 0:01:07]}  Kb6 {[%clk 0:01:12]} 37. Kc4 {[%clk 0:01:07]}  Rb2 {[%clk 0:01:12]} 38. Bd5 {[%clk 0:01:01]}  c6 {[%clk 0:01:06]} 39. Be4 {[%clk 0:01:00]}  Kc7 {[%clk 0:01:01]} 40. Bf3 {[%clk 0:00:58]}  Kd6 {[%clk 0:01:00]} 41. Be4 {[%clk 0:00:58]}  Ke5 {[%clk 0:00:50]} 42. Bxc6 {[%clk 0:00:59]}  Rc2+ {[%clk 0:00:48]} 43. Kb5 {[%clk 0:00:59]}  Kf4 {[%clk 0:00:48]} 44. Be4 {[%clk 0:00:56]}  Ke3 {[%clk 0:00:48]} 45. Ka6 {[%clk 0:00:55]}  Rc7 {[%clk 0:00:44]} 46. b5 {[%clk 0:00:55]}  Re7 {[%clk 0:00:45]} 47. b6 {[%clk 0:00:54]}  Re6 {[%clk 0:00:42]} 48. Ka7 {[%clk 0:00:51]}  Rxe4 {[%clk 0:00:41]} 49. dxe4 {[%clk 0:00:52]}  d3 {[%clk 0:00:41]} 50. b7 {[%clk 0:00:52]}  d2 {[%clk 0:00:41]} 51. b8=Q {[%clk 0:00:52]}  d1=Q {[%clk 0:00:42]} 52. Qb6+ {[%clk 0:00:38]}  Kxe4 {[%clk 0:00:41]} 53. Qe6+ {[%clk 0:00:36]}  Kf4 {[%clk 0:00:40]} 54. Qf6+ {[%clk 0:00:35]}  Ke4 {[%clk 0:00:35]} 55. Qxg5 {[%clk 0:00:33]}  Qd4+ {[%clk 0:00:35]} 56. Kb7 {[%clk 0:00:31]}  Kd3 {[%clk 0:00:33]} 57. Kc6 {[%clk 0:00:25]}  Qe4+ {[%clk 0:00:31]} 58. Qd5+ {[%clk 0:00:25]}  Qxd5+ {[%clk 0:00:31]} 59. Kxd5 {[%clk 0:00:25]}  Ke3 {[%clk 0:00:31]} 60. Ke5 {[%clk 0:00:25]}  Kf2 {[%clk 0:00:31]} 61. Kf4 {[%clk 0:00:26]}  Kxg2 {[%clk 0:00:28]} 62. Kg4 {[%clk 0:00:27]}  Kf2 {[%clk 0:00:29]} 63. Kxh4 {[%clk 0:00:27]}  Kf3 {[%clk 0:00:29]} 64. Kg5 {[%clk 0:00:27]}  Ke4 {[%clk 0:00:28]} 65. h4 {[%clk 0:00:28]}  Ke5 {[%clk 0:00:29]} 66. Kg6 {[%clk 0:00:28]}  Ke6 {[%clk 0:00:29]} 67. h5 {[%clk 0:00:29]}  Ke7 {[%clk 0:00:29]} 68. Kg7 {[%clk 0:00:30]} 1-0


[Site "https://www.chess.com"]

[Event "Titled Tuesday Blitz February 21 Early 2023"]
[White "Sreyas Payyappat"]
[Black "Ardila, Oscar Humberto"]
[WhiteFideId "46674969"]
[BlackFideId "4404742"]
[WhiteElo "2076"]
[BlackElo "1982"]
[Result "1-0"]
[Round "07"]
[TimeControl "180+2"]
[Date "2023.02.21"]
[WhiteClock "0:00:05"]
[BlackClock "0:00:01"]

1. e4 {[%clk 0:03:00]}  e5 {[%clk 0:03:00]} 2. Nf3 {[%clk 0:02:59]}  Nf6 {[%clk 0:03:00]} 3. Nxe5 {[%clk 0:02:57]}  d6 {[%clk 0:03:00]} 4. Nf3 {[%clk 0:02:57]}  Nxe4 {[%clk 0:03:00]} 5. Nc3 {[%clk 0:02:53]}  Nxc3 {[%clk 0:03:00]} 6. dxc3 {[%clk 0:02:54]}  Be7 {[%clk 0:03:01]} 7. Bd3 {[%clk 0:02:53]}  O-O {[%clk 0:03:02]} 8. O-O {[%clk 0:02:52]}  Nd7 {[%clk 0:03:01]} 9. Be3 {[%clk 0:02:52]}  Ne5 {[%clk 0:02:52]} 10. Nxe5 {[%clk 0:02:49]}  dxe5 {[%clk 0:02:52]} 11. Qh5 {[%clk 0:02:48]}  f5 {[%clk 0:02:46]} 12. Bc4+ {[%clk 0:02:39]}  Kh8 {[%clk 0:02:46]} 13. Bf7 {[%clk 0:02:35]}  f4 {[%clk 0:02:20]} 14. Rad1 {[%clk 0:02:06]}  Bd6 {[%clk 0:02:19]} 15. Bg6 {[%clk 0:01:56]}  h6 {[%clk 0:02:19]} 16. Bc5 {[%clk 0:01:54]}  Qf6 {[%clk 0:01:49]} 17. Bxd6 {[%clk 0:01:53]}  cxd6 {[%clk 0:01:49]} 18. Rd3 {[%clk 0:01:49]}  b6 {[%clk 0:01:05]} 19. Rfd1 {[%clk 0:01:38]}  Rd8 {[%clk 0:01:05]} 20. Be4 {[%clk 0:01:31]}  Rb8 {[%clk 0:00:59]} 21. Qf3 {[%clk 0:01:30]}  Ba6 {[%clk 0:00:53]} 22. R3d2 {[%clk 0:01:27]}  Bc4 {[%clk 0:00:50]} 23. b3 {[%clk 0:01:25]}  Bg8 {[%clk 0:00:50]} 24. c4 {[%clk 0:01:22]}  g5 {[%clk 0:00:46]} 25. Rd3 {[%clk 0:01:14]}  b5 {[%clk 0:00:32]} 26. c5 {[%clk 0:01:09]}  dxc5 {[%clk 0:00:27]} 27. Rxd8 {[%clk 0:01:02]}  Rxd8 {[%clk 0:00:26]} 28. Rxd8 {[%clk 0:01:03]}  Qxd8 {[%clk 0:00:27]} 29. h4 {[%clk 0:00:56]}  Kg7 {[%clk 0:00:24]} 30. hxg5 {[%clk 0:00:42]}  hxg5 {[%clk 0:00:21]} 31. Bd3 {[%clk 0:00:26]}  Qd4 {[%clk 0:00:16]} 32. Qb7+ {[%clk 0:00:24]}  Kf6 {[%clk 0:00:14]} 33. Qxb5 {[%clk 0:00:17]}  e4 {[%clk 0:00:14]} 34. Qc6+ {[%clk 0:00:16]}  Be6 {[%clk 0:00:13]} 35. Qxe4 {[%clk 0:00:16]}  Qa1+ {[%clk 0:00:08]} 36. Kh2 {[%clk 0:00:16]}  Qc3 {[%clk 0:00:08]} 37. g3 {[%clk 0:00:11]}  fxg3+ {[%clk 0:00:08]} 38. Kxg3 {[%clk 0:00:11]}  g4 {[%clk 0:00:08]} 39. Qf4+ {[%clk 0:00:06]}  Ke7 {[%clk 0:00:08]} 40. Qe3 {[%clk 0:00:06]}  a5 {[%clk 0:00:07]} 41. Bc4 {[%clk 0:00:04]}  Qf6 {[%clk 0:00:05]} 42. Bxe6 {[%clk 0:00:04]}  Kd6 {[%clk 0:00:01]} 43. Bxg4 {[%clk 0:00:03]}  Kc6 {[%clk 0:00:02]} 44. Qf4 {[%clk 0:00:04]}  Qe7 {[%clk 0:00:01]} 45. Bf3+ {[%clk 0:00:04]}  Kb5 {[%clk 0:00:01]} 46. Qe4 {[%clk 0:00:05]} 1-0


[Site "https://www.chess.com"]

[Event "Titled Tuesday Blitz February 21 Early 2023"]
[White "lisjakzlatko1"]
[Black "Begunov, Konstantin"]
[BlackFideId "4118510"]
[WhiteElo "2162"]
[BlackElo "2325"]
[Result "0-1"]
[Round "07"]
[TimeControl "180+2"]
[Date "2023.02.21"]
[WhiteClock "0:00:01"]
[BlackClock "0:00:08"]

1. e4 {[%clk 0:03:00]}  c5 {[%clk 0:02:59]} 2. b4 {[%clk 0:02:59]}  cxb4 {[%clk 0:02:59]} 3. Bb2 {[%clk 0:03:00]}  d5 {[%clk 0:02:59]} 4. exd5 {[%clk 0:02:58]}  Qxd5 {[%clk 0:02:58]} 5. d4 {[%clk 0:02:58]}  Bf5 {[%clk 0:02:49]} 6. c4 {[%clk 0:02:55]}  bxc3 {[%clk 0:02:37]} 7. Nxc3 {[%clk 0:02:55]}  Qa5 {[%clk 0:02:33]} 8. Nf3 {[%clk 0:02:49]}  e6 {[%clk 0:02:28]} 9. Bb5+ {[%clk 0:02:44]}  Nc6 {[%clk 0:02:26]} 10. O-O {[%clk 0:02:38]}  Bb4 {[%clk 0:02:20]} 11. Qb3 {[%clk 0:02:25]}  Ne7 {[%clk 0:01:57]} 12. d5 {[%clk 0:01:53]}  exd5 {[%clk 0:01:07]} 13. Nxd5 {[%clk 0:01:51]}  O-O {[%clk 0:01:02]} 14. Bxc6 {[%clk 0:00:57]}  Nxc6 {[%clk 0:00:55]} 15. a3 {[%clk 0:00:41]}  Be6 {[%clk 0:00:36]} 16. Rad1 {[%clk 0:00:32]}  Bc5 {[%clk 0:00:20]} 17. Ng5 {[%clk 0:00:24]}  Bxd5 {[%clk 0:00:17]} 18. Rxd5 {[%clk 0:00:21]}  Qb6 {[%clk 0:00:16]} 19. Qc3 {[%clk 0:00:19]}  f6 {[%clk 0:00:13]} 20. Qh3 {[%clk 0:00:14]}  fxg5 {[%clk 0:00:11]} 21. Qe6+ {[%clk 0:00:08]}  Kh8 {[%clk 0:00:10]} 22. Bxg7+ {[%clk 0:00:05]}  Kxg7 {[%clk 0:00:08]} 23. Rxg5+ {[%clk 0:00:05]}  Kh8 {[%clk 0:00:09]} 24. h4 {[%clk 0:00:01]}  Bxf2+ {[%clk 0:00:08]} 0-1


[Site "https://www.chess.com"]

[Event "Titled Tuesday Blitz February 21 Early 2023"]
[White "SicilianPanzer"]
[Black "Mushini Ajay"]
[BlackFideId "35066188"]
[WhiteElo "2254"]
[BlackElo "2310"]
[Result "1-0"]
[Round "07"]
[TimeControl "180+2"]
[Date "2023.02.21"]
[WhiteClock "0:00:02"]
[BlackClock "0:00:45"]

1. e4 {[%clk 0:03:00]}  c5 {[%clk 0:02:55]} 2. Nc3 {[%clk 0:02:59]}  a6 {[%clk 0:02:55]} 3. Nf3 {[%clk 0:02:58]}  b5 {[%clk 0:02:56]} 4. d4 {[%clk 0:02:56]}  cxd4 {[%clk 0:02:56]} 5. Nxd4 {[%clk 0:02:56]}  Bb7 {[%clk 0:02:56]} 6. Bd3 {[%clk 0:02:56]}  d6 {[%clk 0:02:56]} 7. O-O {[%clk 0:02:55]}  Nf6 {[%clk 0:02:56]} 8. Qe2 {[%clk 0:02:49]}  Nbd7 {[%clk 0:02:55]} 9. f4 {[%clk 0:02:45]}  e6 {[%clk 0:02:52]} 10. e5 {[%clk 0:02:26]}  dxe5 {[%clk 0:02:47]} 11. fxe5 {[%clk 0:02:25]}  Bc5 {[%clk 0:02:47]} 12. exf6 {[%clk 0:01:57]}  Bxd4+ {[%clk 0:02:45]} 13. Be3 {[%clk 0:01:56]}  Bxf6 {[%clk 0:02:45]} 14. Qh5 {[%clk 0:01:55]}  g6 {[%clk 0:02:40]} 15. Qh6 {[%clk 0:01:53]}  Qe7 {[%clk 0:02:31]} 16. Ne4 {[%clk 0:01:45]}  Bxe4 {[%clk 0:02:27]} 17. Bxe4 {[%clk 0:01:45]}  Rc8 {[%clk 0:02:26]} 18. Rad1 {[%clk 0:01:38]}  Ne5 {[%clk 0:02:14]} 19. Rxf6 {[%clk 0:01:03]}  Qxf6 {[%clk 0:02:09]} 20. Bg5 {[%clk 0:01:02]}  Qf2+ {[%clk 0:01:37]} 21. Kxf2 {[%clk 0:00:59]}  Ng4+ {[%clk 0:01:37]} 22. Ke2 {[%clk 0:00:52]}  Nxh6 {[%clk 0:01:37]} 23. Bxh6 {[%clk 0:00:52]}  f5 {[%clk 0:01:32]} 24. Bd3 {[%clk 0:00:40]}  Ke7 {[%clk 0:01:31]} 25. c3 {[%clk 0:00:36]}  Kf6 {[%clk 0:01:25]} 26. h4 {[%clk 0:00:34]}  e5 {[%clk 0:01:22]} 27. Bc2 {[%clk 0:00:28]}  e4 {[%clk 0:01:07]} 28. Bb3 {[%clk 0:00:18]}  Rc6 {[%clk 0:01:00]} 29. Rd7 {[%clk 0:00:17]}  Ke5 {[%clk 0:00:55]} 30. Bg7+ {[%clk 0:00:16]}  Kf4 {[%clk 0:00:54]} 31. Bxh8 {[%clk 0:00:16]}  Kg3 {[%clk 0:00:54]} 32. Rxh7 {[%clk 0:00:15]}  Kxg2 {[%clk 0:00:54]} 33. h5 {[%clk 0:00:12]}  f4 {[%clk 0:00:53]} 34. hxg6 {[%clk 0:00:10]}  f3+ {[%clk 0:00:53]} 35. Ke3 {[%clk 0:00:08]}  f2 {[%clk 0:00:54]} 36. Rf7 {[%clk 0:00:03]}  Rxg6 {[%clk 0:00:49]} 37. Rxf2+ {[%clk 0:00:04]}  Kg1 {[%clk 0:00:50]} 38. Bd4 {[%clk 0:00:04]}  Rg4 {[%clk 0:00:48]} 39. Bc2 {[%clk 0:00:04]}  Kh1 {[%clk 0:00:48]} 40. Bxe4+ {[%clk 0:00:02]}  Kg1 {[%clk 0:00:48]} 41. Bf3 {[%clk 0:00:02]}  Rg3 {[%clk 0:00:48]} 42. Kf4 {[%clk 0:00:02]}  b4 {[%clk 0:00:46]} 43. Rd2+ {[%clk 0:00:02]}  Kf1 {[%clk 0:00:45]} 44. Rd1# {[%clk 0:00:02]} 1-0


[Site "https://www.chess.com"]

[Event "Titled Tuesday Blitz February 21 Early 2023"]
[White "Ciuffoletti, Paolo"]
[Black "Gamage, Wanshini Vidusama"]
[WhiteFideId "807630"]
[BlackFideId "9953752"]
[WhiteElo "2106"]
[BlackElo "1089"]
[Result "0-1"]
[Round "07"]
[TimeControl "180+2"]
[Date "2023.02.21"]
[WhiteClock "0:00:03"]
[BlackClock "0:00:12"]

1. e4 {[%clk 0:03:00]}  c5 {[%clk 0:02:59]} 2. d4 {[%clk 0:03:00]}  cxd4 {[%clk 0:02:59]} 3. c3 {[%clk 0:02:59]}  Nf6 {[%clk 0:02:58]} 4. e5 {[%clk 0:02:59]}  Nd5 {[%clk 0:02:58]} 5. Qxd4 {[%clk 0:02:59]}  e6 {[%clk 0:02:57]} 6. Bc4 {[%clk 0:02:59]}  Nc6 {[%clk 0:02:55]} 7. Qe4 {[%clk 0:02:59]}  f5 {[%clk 0:02:55]} 8. Qe2 {[%clk 0:02:58]}  Nb6 {[%clk 0:02:40]} 9. Bb3 {[%clk 0:02:57]}  Be7 {[%clk 0:02:34]} 10. Nf3 {[%clk 0:02:55]}  O-O {[%clk 0:02:34]} 11. O-O {[%clk 0:02:43]}  Na5 {[%clk 0:02:24]} 12. Bc2 {[%clk 0:02:39]}  d5 {[%clk 0:02:14]} 13. b4 {[%clk 0:02:13]}  Nac4 {[%clk 0:02:11]} 14. a4 {[%clk 0:02:12]}  Qc7 {[%clk 0:02:01]} 15. a5 {[%clk 0:01:52]}  Nd7 {[%clk 0:02:00]} 16. h4 {[%clk 0:01:46]}  Ndxe5 {[%clk 0:01:48]} 17. Nd4 {[%clk 0:01:44]}  Bxh4 {[%clk 0:01:27]} 18. Bf4 {[%clk 0:01:41]}  Bf6 {[%clk 0:01:28]} 19. Re1 {[%clk 0:01:21]}  g5 {[%clk 0:01:26]} 20. Bh2 {[%clk 0:01:10]}  Qg7 {[%clk 0:01:19]} 21. Nd2 {[%clk 0:01:04]}  Nxd2 {[%clk 0:01:15]} 22. Qxd2 {[%clk 0:01:00]}  Nc4 {[%clk 0:01:15]} 23. Qd3 {[%clk 0:00:49]}  Bxd4 {[%clk 0:01:11]} 24. cxd4 {[%clk 0:00:47]}  Bd7 {[%clk 0:01:00]} 25. Be5 {[%clk 0:00:36]}  Nxe5 {[%clk 0:00:59]} 26. Rxe5 {[%clk 0:00:35]}  Rac8 {[%clk 0:00:58]} 27. Rae1 {[%clk 0:00:28]}  Rc4 {[%clk 0:00:39]} 28. Bb3 {[%clk 0:00:23]}  Rc6 {[%clk 0:00:38]} 29. Bxd5 {[%clk 0:00:20]}  exd5 {[%clk 0:00:34]} 30. Re7 {[%clk 0:00:19]}  Rf7 {[%clk 0:00:34]} 31. R7e5 {[%clk 0:00:15]}  Qf6 {[%clk 0:00:26]} 32. b5 {[%clk 0:00:14]}  Re6 {[%clk 0:00:24]} 33. Qg3 {[%clk 0:00:13]}  Rxe5 {[%clk 0:00:23]} 34. Rxe5 {[%clk 0:00:12]}  h6 {[%clk 0:00:20]} 35. Rxd5 {[%clk 0:00:11]}  Be6 {[%clk 0:00:20]} 36. Rd6 {[%clk 0:00:10]}  Qe7 {[%clk 0:00:19]} 37. Qe5 {[%clk 0:00:10]}  Rf6 {[%clk 0:00:14]} 38. a6 {[%clk 0:00:08]}  bxa6 {[%clk 0:00:14]} 39. bxa6 {[%clk 0:00:07]}  Qf7 {[%clk 0:00:14]} 40. Qc5 {[%clk 0:00:06]}  Kg7 {[%clk 0:00:13]} 41. Rd8 {[%clk 0:00:06]}  Kg6 {[%clk 0:00:12]} 42. Rb8 {[%clk 0:00:06]}  Qg7 {[%clk 0:00:06]} 43. Rb7 {[%clk 0:00:06]}  Rf7 {[%clk 0:00:06]} 44. Qe5 {[%clk 0:00:06]}  Qxe5 {[%clk 0:00:06]} 45. dxe5 {[%clk 0:00:05]}  f4 {[%clk 0:00:06]} 46. Rb8 {[%clk 0:00:04]}  Kf5 {[%clk 0:00:07]} 47. Rh8 {[%clk 0:00:03]}  Kxe5 {[%clk 0:00:07]} 48. Rxh6 {[%clk 0:00:03]}  Rf6 {[%clk 0:00:08]} 49. Rh7 {[%clk 0:00:04]}  Bc4 {[%clk 0:00:09]} 50. Rxa7 {[%clk 0:00:03]}  Rxa6 {[%clk 0:00:09]} 51. Rxa6 {[%clk 0:00:03]}  Bxa6 {[%clk 0:00:10]} 52. Kh2 {[%clk 0:00:03]}  g4 {[%clk 0:00:11]} 53. f3 {[%clk 0:00:02]}  gxf3 {[%clk 0:00:10]} 54. gxf3 {[%clk 0:00:02]}  Kd4 {[%clk 0:00:11]} 55. Kh3 {[%clk 0:00:03]}  Ke3 {[%clk 0:00:12]} 56. Kg4 {[%clk 0:00:03]}  Be2 {[%clk 0:00:12]} 0-1


[Site "https://www.chess.com"]

[Event "Titled Tuesday Blitz February 21 Early 2023"]
[White "Levitan, Caleb Levi"]
[Black "Simonovic, Miroslav"]
[WhiteFideId "14332620"]
[BlackFideId "919152"]
[WhiteElo "2129"]
[BlackElo "2082"]
[Result "0-1"]
[Round "07"]
[TimeControl "180+2"]
[Date "2023.02.21"]
[WhiteClock "0:00:04"]
[BlackClock "0:00:59"]

1. d4 {[%clk 0:02:59]}  Nf6 {[%clk 0:02:59]} 2. Bf4 {[%clk 0:02:59]}  c5 {[%clk 0:03:00]} 3. d5 {[%clk 0:02:57]}  d6 {[%clk 0:02:58]} 4. Nc3 {[%clk 0:02:57]}  e5 {[%clk 0:02:58]} 5. Bg5 {[%clk 0:02:55]}  Be7 {[%clk 0:02:58]} 6. Bxf6 {[%clk 0:02:52]}  Bxf6 {[%clk 0:02:58]} 7. e4 {[%clk 0:02:52]}  O-O {[%clk 0:02:53]} 8. Bc4 {[%clk 0:02:52]}  g6 {[%clk 0:02:53]} 9. Nge2 {[%clk 0:02:36]}  a6 {[%clk 0:02:52]} 10. a4 {[%clk 0:02:35]}  Bg4 {[%clk 0:02:48]} 11. h3 {[%clk 0:02:32]}  Bxe2 {[%clk 0:02:48]} 12. Nxe2 {[%clk 0:02:21]}  Bg7 {[%clk 0:02:47]} 13. O-O {[%clk 0:02:20]}  f5 {[%clk 0:02:47]} 14. exf5 {[%clk 0:02:11]}  gxf5 {[%clk 0:02:48]} 15. f4 {[%clk 0:02:06]}  e4 {[%clk 0:02:47]} 16. c3 {[%clk 0:02:07]}  Nd7 {[%clk 0:02:45]} 17. Ng3 {[%clk 0:01:58]}  Qh4 {[%clk 0:02:36]} 18. Qe1 {[%clk 0:01:38]}  Rae8 {[%clk 0:02:13]} 19. Qe3 {[%clk 0:01:17]}  Bh6 {[%clk 0:02:02]} 20. Rae1 {[%clk 0:00:57]}  Re7 {[%clk 0:02:02]} 21. Qf2 {[%clk 0:00:19]}  Rg7 {[%clk 0:02:00]} 22. Re3 {[%clk 0:00:19]}  Kh8 {[%clk 0:01:47]} 23. Nxe4 {[%clk 0:00:16]}  Qxf2+ {[%clk 0:01:45]} 24. Nxf2 {[%clk 0:00:16]}  Nf6 {[%clk 0:01:41]} 25. Nd3 {[%clk 0:00:14]}  Ne4 {[%clk 0:01:40]} 26. g4 {[%clk 0:00:11]}  Re8 {[%clk 0:01:06]} 27. g5 {[%clk 0:00:11]}  Bxg5 {[%clk 0:01:06]} 28. fxg5 {[%clk 0:00:08]}  Rxg5+ {[%clk 0:01:07]} 29. Kh2 {[%clk 0:00:08]}  Reg8 {[%clk 0:01:04]} 30. Re2 {[%clk 0:00:04]}  Ng3 {[%clk 0:01:04]} 31. Rff2 {[%clk 0:00:02]}  Nxe2 {[%clk 0:01:04]} 32. Rxe2 {[%clk 0:00:02]}  Rg1 {[%clk 0:01:03]} 33. Nf4 {[%clk 0:00:03]}  Ra1 {[%clk 0:01:03]} 34. Nh5 {[%clk 0:00:02]}  Rgg1 {[%clk 0:01:01]} 35. Re8+ {[%clk 0:00:01]}  Rg8 {[%clk 0:01:02]} 36. Rxg8+ {[%clk 0:00:02]}  Kxg8 {[%clk 0:01:03]} 37. Nf6+ {[%clk 0:00:02]}  Kf7 {[%clk 0:01:03]} 38. Nd7 {[%clk 0:00:02]}  Rxa4 {[%clk 0:01:02]} 39. b3 {[%clk 0:00:02]}  Ra2+ {[%clk 0:01:02]} 40. Kg3 {[%clk 0:00:03]}  b5 {[%clk 0:01:02]} 41. Bd3 {[%clk 0:00:03]}  Ra3 {[%clk 0:01:02]} 42. Bxf5 {[%clk 0:00:02]}  Rxb3 {[%clk 0:01:02]} 43. Nb6 {[%clk 0:00:01]}  Rxc3+ {[%clk 0:01:02]} 44. Kf4 {[%clk 0:00:02]}  b4 {[%clk 0:01:01]} 45. Be6+ {[%clk 0:00:02]}  Kf6 {[%clk 0:01:01]} 46. Nd7+ {[%clk 0:00:01]}  Ke7 {[%clk 0:01:01]} 47. Nb6 {[%clk 0:00:01]}  b3 {[%clk 0:01:01]} 48. Nc8+ {[%clk 0:00:02]}  Kd8 {[%clk 0:01:01]} 49. Nxd6 {[%clk 0:00:02]}  b2 {[%clk 0:01:01]} 50. Bf5 {[%clk 0:00:03]}  Rc1 {[%clk 0:01:01]} 51. Ke3 {[%clk 0:00:03]}  b1=Q {[%clk 0:01:01]} 52. Bxb1 {[%clk 0:00:03]}  Rxb1 {[%clk 0:01:02]} 53. Ne4 {[%clk 0:00:04]}  Re1+ {[%clk 0:01:00]} 54. Kd3 {[%clk 0:00:04]}  Rxe4 {[%clk 0:01:00]} 55. Kxe4 {[%clk 0:00:04]}  Kd7 {[%clk 0:00:59]} 56. Kd3 {[%clk 0:00:05]}  Kd6 {[%clk 0:00:59]} 57. Kc4 {[%clk 0:00:06]}  a5 {[%clk 0:00:59]} 58. h4 {[%clk 0:00:06]}  h5 {[%clk 0:00:59]} 59. Kb5 {[%clk 0:00:03]}  Kxd5 {[%clk 0:01:00]} 60. Kxa5 {[%clk 0:00:04]}  Kd4 {[%clk 0:00:59]} 61. Ka4 {[%clk 0:00:05]}  c4 {[%clk 0:00:59]} 62. Ka3 {[%clk 0:00:05]}  Kd3 {[%clk 0:00:59]} 63. Kb2 {[%clk 0:00:06]}  Kd2 {[%clk 0:01:00]} 64. Kb1 {[%clk 0:00:04]}  c3 {[%clk 0:01:01]} 65. Ka2 {[%clk 0:00:03]}  c2 {[%clk 0:01:02]} 66. Kb2 {[%clk 0:00:02]}  c1=Q+ {[%clk 0:01:02]} 67. Ka2 {[%clk 0:00:03]}  Qc4+ {[%clk 0:00:59]} 68. Kb2 {[%clk 0:00:03]}  Qxh4 {[%clk 0:01:00]} 69. Ka1 {[%clk 0:00:03]}  Qb4 {[%clk 0:01:00]} 70. Ka2 {[%clk 0:00:03]}  Kc2 {[%clk 0:01:00]} 71. Ka1 {[%clk 0:00:04]}  Qb2# {[%clk 0:00:59]} 0-1


[Site "https://www.chess.com"]

[Event "Titled Tuesday Blitz February 21 Early 2023"]
[White "Michalski, Olaf"]
[Black "Jiganchine, Roman"]
[WhiteFideId "1106740"]
[BlackFideId "2603667"]
[WhiteElo "2273"]
[BlackElo "2205"]
[Result "1-0"]
[Round "07"]
[TimeControl "180+2"]
[Date "2023.02.21"]
[WhiteClock "0:01:14"]
[BlackClock "0:02:17"]

1. d4 {[%clk 0:03:00]}  d5 {[%clk 0:02:59]} 2. c4 {[%clk 0:02:52]}  e6 {[%clk 0:02:54]} 3. Nc3 {[%clk 0:02:50]}  Nf6 {[%clk 0:02:51]} 4. Bg5 {[%clk 0:02:49]}  c5 {[%clk 0:02:46]} 5. cxd5 {[%clk 0:02:42]}  cxd4 {[%clk 0:02:43]} 6. Qxd4 {[%clk 0:02:35]}  Be7 {[%clk 0:02:37]} 7. Nf3 {[%clk 0:02:23]}  exd5 {[%clk 0:02:27]} 8. e3 {[%clk 0:01:55]}  O-O {[%clk 0:02:25]} 9. Ne5 {[%clk 0:01:34]}  Be6 {[%clk 0:02:19]} 10. Bb5 {[%clk 0:01:23]}  h6 {[%clk 0:02:17]} 11. Bh4 {[%clk 0:01:14]} 1-0


[Site "https://www.chess.com"]

[Event "Titled Tuesday Blitz February 21 Early 2023"]
[White "Winkels, Marcel"]
[Black "Berkes, Ferenc"]
[WhiteFideId "1003887"]
[BlackFideId "718572"]
[WhiteElo "1960"]
[BlackElo "2621"]
[Result "0-1"]
[Round "07"]
[TimeControl "180+2"]
[Date "2023.02.21"]
[WhiteClock "0:00:15"]
[BlackClock "0:00:46"]

1. e4 {[%clk 0:03:00]}  c6 {[%clk 0:02:58]} 2. d4 {[%clk 0:02:59]}  d5 {[%clk 0:02:58]} 3. exd5 {[%clk 0:03:00]}  cxd5 {[%clk 0:02:57]} 4. c4 {[%clk 0:03:00]}  Nf6 {[%clk 0:02:56]} 5. Nc3 {[%clk 0:03:01]}  Nc6 {[%clk 0:02:56]} 6. Bg5 {[%clk 0:03:00]}  Be6 {[%clk 0:02:54]} 7. Bxf6 {[%clk 0:02:52]}  exf6 {[%clk 0:02:53]} 8. Nf3 {[%clk 0:02:52]}  Bb4 {[%clk 0:02:50]} 9. c5 {[%clk 0:02:44]}  O-O {[%clk 0:02:43]} 10. Bd3 {[%clk 0:02:43]}  Bg4 {[%clk 0:02:40]} 11. Qc2 {[%clk 0:02:42]}  Bxf3 {[%clk 0:02:38]} 12. gxf3 {[%clk 0:02:21]}  Nxd4 {[%clk 0:02:36]} 13. Bxh7+ {[%clk 0:02:07]}  Kh8 {[%clk 0:02:34]} 14. Qd3 {[%clk 0:02:07]}  Qe7+ {[%clk 0:02:32]} 15. Kf1 {[%clk 0:02:05]}  Bxc3 {[%clk 0:02:26]} 16. bxc3 {[%clk 0:02:02]}  Ne6 {[%clk 0:02:16]} 17. Bf5 {[%clk 0:01:48]}  Nxc5 {[%clk 0:02:14]} 18. Qd4 {[%clk 0:01:46]}  g6 {[%clk 0:02:12]} 19. Rg1 {[%clk 0:01:28]}  Rae8 {[%clk 0:01:51]} 20. Kg2 {[%clk 0:01:18]}  Kg7 {[%clk 0:01:44]} 21. Qg4 {[%clk 0:01:14]}  Rh8 {[%clk 0:01:37]} 22. Kh1 {[%clk 0:01:13]}  Rh6 {[%clk 0:01:32]} 23. Rg3 {[%clk 0:01:09]}  Qe5 {[%clk 0:01:18]} 24. Rag1 {[%clk 0:01:05]}  Reh8 {[%clk 0:01:11]} 25. h3 {[%clk 0:00:58]}  Rh4 {[%clk 0:01:08]} 26. f4 {[%clk 0:00:48]}  Qxf4 {[%clk 0:01:00]} 27. Qxf4 {[%clk 0:00:40]}  Rxf4 {[%clk 0:00:59]} 28. Bxg6 {[%clk 0:00:25]}  fxg6 {[%clk 0:00:56]} 29. Rxg6+ {[%clk 0:00:25]}  Kf7 {[%clk 0:00:57]} 30. Rg7+ {[%clk 0:00:26]}  Ke6 {[%clk 0:00:56]} 31. Re1+ {[%clk 0:00:26]}  Ne4 {[%clk 0:00:55]} 32. Kg2 {[%clk 0:00:26]}  Rxf2+ {[%clk 0:00:54]} 33. Kg1 {[%clk 0:00:25]}  Rf3 {[%clk 0:00:54]} 34. c4 {[%clk 0:00:24]}  f5 {[%clk 0:00:52]} 35. Rxb7 {[%clk 0:00:22]}  dxc4 {[%clk 0:00:50]} 36. Rxa7 {[%clk 0:00:21]}  Rg8+ {[%clk 0:00:50]} 37. Kh2 {[%clk 0:00:19]}  Rf2+ {[%clk 0:00:49]} 38. Kh1 {[%clk 0:00:19]}  Rgg2 {[%clk 0:00:47]} 39. Ra6+ {[%clk 0:00:15]}  Ke5 {[%clk 0:00:46]} 40. Ra5+ {[%clk 0:00:15]}  Kf4 {[%clk 0:00:46]} 0-1


[Site "https://www.chess.com"]